lending/lending_fUSD_20250913
["ID","MTS","AMOUNT","RATE_DAILY","PERIOD"]
[385333263,1757781045481,-151.0,0.00027387,7]
[385333265,1757781045491,-151.0,0.00027387,7]
[385333267,1757781045501,-168.0,0.00027388,2]
[385333269,1757781045511,-4029.85867463,0.0002739,2]
[385333271,1757781045520,-7960.58576753,0.0002739,2]
[385333273,1757781045530,-3178.07960618,0.0002739,2]
[385333275,1757781045540,-160.0,0.0002739,7]
[385333277,1757781045550,-3111.0,0.00027395,2]
[385333279,1757781045559,-334.5472959,0.00027395,2]
[385333281,1757781045567,-287.61899177,0.00027395,2]
[385333283,1757781045576,-160.0,0.00027395,2]
[385333285,1757781045587,-300.0,0.00027396,10]
[385333287,1757781045596,-509.33574737,0.00027396,2]
[385333289,1757781045605,-5225.46698686,0.00027397,2]
[385333291,1757781045614,-151.0,0.00027397,2]
[385333293,1757781045623,-151.74281222,0.00027397,2]
[385333295,1757781045632,-400.0,0.00027397,2]
[385333297,1757781045642,-400.0,0.00027397,2]
[385333299,1757781045652,-166.1900357,0.00027397,2]
[385333301,1757781045662,-400.0,0.00027397,2]
[385333303,1757781045672,-400.0,0.00027397,2]
[385333305,1757781045681,-1689.980541,0.00027397,2]
[385333307,1757781045691,-400.0,0.00027397,2]
[385333309,1757781045703,-400.0,0.00027397,2]
[385333311,1757781045712,-400.0,0.00027397,2]
[385333313,1757781045722,-400.0,0.00027397,2]
[385333315,1757781045732,-394.32567391,0.00027397,2]
[385333317,1757781045742,-404.49263447,0.00027397,2]
[385333319,1757781045752,-400.0,0.00027397,2]
[385333321,1757781045762,-400.0,0.00027397,2]
[385333323,1757781045772,-400.0,0.00027397,2]
[385333325,1757781045781,-400.0,0.00027397,2]
[385333327,1757781045792,-412.35381565,0.00027397,2]
[385333329,1757781045802,-407.41435702,0.00027397,2]
[385333331,1757781045812,-416.73,0.00027397,2]
[385333333,1757781045822,-401.15284559,0.00027397,2]
[385333335,1757781045831,-400.0,0.00027397,2]
[385333337,1757781045840,-400.0,0.00027397,2]
[385333339,1757781045849,-400.0,0.00027397,2]
[385333341,1757781045859,-400.0,0.00027397,2]
[385333343,1757781045870,-400.0,0.00027397,2]
[385333345,1757781045879,-400.0,0.00027397,2]
[385333347,1757781045891,-433.8,0.00027397,2]
[385333349,1757781045901,-473.41,0.00027397,2]
[385333351,1757781045910,-467.03,0.00027397,2]
[385333353,1757781045920,-690.89,0.00027397,2]
[385333355,1757781045929,-400.0,0.00027397,2]
[385333357,1757781045938,-466.76,0.00027397,2]
[385333358,1757781045947,-400.0,0.00027397,2]
[385333361,1757781045958,-673.85,0.00027397,2]
[385333363,1757781045969,-400.0,0.00027397,2]
[385333365,1757781045978,-400.0,0.00027397,2]
[385333366,1757781045988,-400.0,0.00027397,2]
[385333368,1757781045998,-400.0,0.00027397,2]
[385333370,1757781046007,-400.0,0.00027397,2]
[385333372,1757781046017,-400.0,0.00027397,2]
[385333374,1757781046027,-400.0,0.00027397,2]
[385333376,1757781046037,-169.01125063,0.00027397,2]
[385333378,1757781046047,-400.0,0.00027397,2]
[385333380,1757781046057,-400.0,0.00027397,2]
[385333382,1757781046066,-400.0,0.00027397,2]
[385333385,1757781046076,-400.0,0.00027397,2]
[385333387,1757781046086,-400.0,0.00027397,2]
[385333390,1757781046096,-400.0,0.00027397,2]
[385333392,1757781046106,-400.0,0.00027397,2]
[385333394,1757781046115,-400.0,0.00027397,2]
[385333402,1757781046179,-400.0,0.00027397,2]
[385333404,1757781046189,-2135.8537624,0.00027397,2]
[385333405,1757781046201,-400.0,0.00027397,2]
[385333407,1757781046211,-415.17096219,0.00027397,2]
[385333409,1757781046221,-400.0,0.00027397,2]
[385333412,1757781046231,-400.0,0.00027397,2]
[385333414,1757781046240,-404.35060443,0.00027397,2]
[385333416,1757781046250,-400.88744106,0.00027397,2]
[385333418,1757781046259,-596.03,0.00027397,2]
[385333419,1757781046269,-463.08,0.00027397,2]
[385333421,1757781046278,-400.0,0.00027397,2]
[385333423,1757781046288,-400.0,0.00027397,2]
[385333425,1757781046298,-400.0,0.00027397,2]
[385333427,1757781046307,-400.0,0.00027397,2]
[385333429,1757781046316,-400.0,0.00027397,2]
[385333431,1757781046326,-400.0,0.00027397,2]
[385333433,1757781046335,-435.18856034,0.00027397,2]
[385333435,1757781046345,-400.0,0.00027397,2]
[385333437,1757781046354,-400.0,0.00027397,2]
[385333439,1757781046363,-400.0,0.00027397,2]
[385333441,1757781046373,-674.36,0.00027397,2]
[385333443,1757781046382,-473.17,0.00027397,2]
[385333445,1757781046392,-408.63142798,0.00027397,2]
[385333447,1757781046401,-699.64,0.00027397,2]
[385333449,1757781046411,-400.0,0.00027397,2]
[385333451,1757781046425,-294.1206603,0.00027397,2]
[385333453,1757781046434,-249.50581704,0.00027397,2]
[385333455,1757781046443,-400.0,0.00027397,2]
[385333457,1757781046454,-400.0,0.00027397,2]
[385333458,1757781046463,-400.0,0.00027397,2]
[385333459,1757781046472,-400.0,0.00027397,2]
[385333460,1757781046481,-400.0,0.00027397,2]
[385333461,1757781046490,-400.0,0.00027397,2]
[385333462,1757781046499,-400.0,0.00027397,2]
[385333463,1757781046508,-406.10485965,0.00027397,2]
[385333464,1757781046517,-400.0,0.00027397,2]
[385333465,1757781046525,-696.43,0.00027397,2]
[385333466,1757781046534,-703.51,0.00027397,2]
[385333467,1757781046543,-400.0,0.00027397,2]
[385333468,1757781046552,-400.0,0.00027397,2]
[385333469,1757781046561,-400.0,0.00027397,2]
[385333470,1757781046570,-475.31,0.00027397,2]
[385333471,1757781046578,-400.0,0.00027397,2]
[385333472,1757781046587,-400.0,0.00027397,2]
[385333474,1757781046596,-400.0,0.00027397,2]
[385333476,1757781046605,-140193.8924822,0.00027397,2]
[385333478,1757781046615,-453.64,0.00027397,2]
[385333480,1757781046624,-400.0,0.00027397,2]
[385333503,1757781046836,-400.0,0.00027397,2]
[385333507,1757781046864,-400.0,0.00027397,2]
[385333509,1757781046878,-400.0,0.00027397,2]
[385333511,1757781046888,-400.0,0.00027397,2]
[385333513,1757781046897,-400.0,0.00027397,2]
[385333515,1757781046906,-400.0,0.00027397,2]
[385333517,1757781046916,-404.4970532,0.00027397,2]
[385333519,1757781046926,-692.82,0.00027397,2]
[385333521,1757781046935,-400.0,0.00027397,2]
[385333523,1757781046944,-520.44,0.00027397,2]
[385333525,1757781046953,-400.0,0.00027397,2]
[385333527,1757781046962,-400.0,0.00027397,2]
[385333529,1757781046972,-400.0,0.00027397,2]
[385333531,1757781046981,-452.52,0.00027397,2]
[385333533,1757781046990,-400.0,0.00027397,2]
[385333535,1757781046999,-585.3,0.00027397,2]
[385333537,1757781047009,-400.0,0.00027397,2]
[385333539,1757781047018,-402.88014854,0.00027397,2]
[385333541,1757781047027,-400.0,0.00027397,2]
[385333543,1757781047036,-400.0,0.00027397,2]
[385333545,1757781047046,-400.0,0.00027397,2]
[385333547,1757781047056,-400.0,0.00027397,2]
[385333549,1757781047064,-400.0,0.00027397,2]
[385333551,1757781047074,-400.0,0.00027397,2]
[385333553,1757781047083,-400.0,0.00027397,2]
[385333555,1757781047092,-583.64,0.00027397,2]
[385333557,1757781047102,-400.0,0.00027397,2]
[385333559,1757781047111,-400.0,0.00027397,2]
[385333561,1757781047120,-400.0,0.00027397,2]
[385333563,1757781047130,-400.0,0.00027397,2]
[385333565,1757781047139,-400.0,0.00027397,2]
[385333567,1757781047148,-400.0,0.00027397,2]
[385333569,1757781047157,-400.0,0.00027397,2]
[385333571,1757781047166,-372.54914965,0.00027397,2]
[385333572,1757781047176,-400.0,0.00027397,2]
[385333574,1757781047185,-400.0,0.00027397,2]
[385333576,1757781047194,-30.03938936,0.00027397,2]
[385333585,1757781047262,-369.96061064,0.00027397,2]
[385333587,1757781047271,-405.26353551,0.00027397,2]
[385333589,1757781047281,-548.6,0.00027397,2]
[385333590,1757781047290,-400.0,0.00027397,2]
[385333592,1757781047299,-400.0,0.00027397,2]
[385333593,1757781047308,-400.0,0.00027397,2]
[385333594,1757781047317,-400.0,0.00027397,2]
[385333595,1757781047327,-400.0,0.00027397,2]
[385333596,1757781047336,-400.0,0.00027397,2]
[385333597,1757781047346,-709.36,0.00027397,2]
[385333598,1757781047356,-400.0,0.00027397,2]
[385333599,1757781047365,-400.0,0.00027397,2]
[385333600,1757781047375,-400.0,0.00027397,2]
[385333601,1757781047384,-400.0,0.00027397,2]
[385333602,1757781047393,-500.0,0.00027397,2]
[385333603,1757781047403,-203.1,0.00027397,2]
[385333604,1757781047412,-400.0,0.00027397,2]
[385333605,1757781047425,-401.7126263,0.00027397,2]
[385333606,1757781047435,-400.0,0.00027397,2]
[385333607,1757781047445,-400.0,0.00027397,2]
[385333608,1757781047454,-419.24,0.00027397,2]
[385333609,1757781047466,-400.0,0.00027397,2]
[385333610,1757781047475,-400.0,0.00027397,2]
[385333611,1757781047485,-400.0,0.00027397,2]
[385333612,1757781047495,-618.22,0.00027397,2]
[385333613,1757781047505,-151.0,0.00027397,7]
[385333614,1757781047514,-400.0,0.00027397,2]
[385333615,1757781047524,-151.0,0.00027397,7]
[385333616,1757781047534,-151.0,0.00027397,7]
[385333617,1757781047543,-664.24,0.00027397,2]
[385333618,1757781047553,-151.0,0.00027397,7]
[385333619,1757781047562,-495.86,0.00027397,2]
[385333620,1757781047572,-400.0,0.00027397,2]
[385333621,1757781047581,-400.0,0.00027397,2]
[385333622,1757781047590,-400.0,0.00027397,2]
[385333623,1757781047600,-929.56,0.00027397,2]
[385333624,1757781047609,-808.28,0.00027397,2]
[385333625,1757781047619,-701.86,0.00027397,2]
[385333626,1757781047628,-400.0,0.00027397,2]
[385333627,1757781047638,-400.0,0.00027397,2]
[385333628,1757781047648,-151.0,0.00027397,7]
[385333629,1757781047657,-151.0,0.00027397,7]
[385333630,1757781047667,-151.0,0.00027397,7]
[385333631,1757781047676,-400.0,0.00027397,2]
[385333632,1757781047685,-400.0,0.00027397,2]
[385333633,1757781047694,-736.59,0.00027397,2]
[385333634,1757781047704,-400.0,0.00027397,2]
[385333635,1757781047713,-400.0,0.00027397,2]
[385333636,1757781047723,-400.0,0.00027397,2]
[385333637,1757781047734,-400.0,0.00027397,2]
[385333638,1757781047744,-257.81170182,0.00027397,2]
[385333639,1757781047754,-400.0,0.00027397,2]
[385333640,1757781047764,-400.0,0.00027397,2]
[385333641,1757781047775,-400.0,0.00027397,2]
[385333643,1757781047784,-400.0,0.00027397,2]
[385333644,1757781047793,-400.0,0.00027397,2]
[385333645,1757781047802,-400.0,0.00027397,2]
[385333646,1757781047811,-548.14,0.00027397,2]
[385333647,1757781047821,-400.0,0.00027397,2]
[385333648,1757781047831,-419.38,0.00027397,2]
[385333649,1757781047840,-400.0,0.00027397,2]
[385333650,1757781047850,-400.0,0.00027397,2]
[385333651,1757781047860,-400.0,0.00027397,2]
[385333652,1757781047873,-466.58,0.00027397,2]
[385333653,1757781047882,-400.0,0.00027397,2]
[385333654,1757781047892,-910.95,0.00027397,2]
[385333655,1757781047902,-400.0,0.00027397,2]
[385333656,1757781047912,-400.0,0.00027397,2]
[385333657,1757781047922,-400.0,0.00027397,2]
[385333658,1757781047931,-400.0,0.00027397,2]
[385333659,1757781047942,-400.0,0.00027397,2]
[385333660,1757781047953,-400.0,0.00027397,2]
[385333661,1757781047963,-400.0,0.00027397,2]
[385333662,1757781047973,-400.0,0.00027397,2]
[385333663,1757781047982,-410.50911769,0.00027397,2]
[385333664,1757781047991,-400.0,0.00027397,2]
[385333665,1757781048001,-400.0,0.00027397,2]
[385333666,1757781048010,-400.0,0.00027397,2]
[385333667,1757781048020,-400.0,0.00027397,2]
[385333668,1757781048029,-400.0,0.00027397,2]
[385333669,1757781048040,-400.0,0.00027397,2]
[385333670,1757781048050,-400.0,0.00027397,2]
[385333671,1757781048060,-400.0,0.00027397,2]
[385333672,1757781048069,-400.0,0.00027397,2]
[385333673,1757781048079,-400.0,0.00027397,2]
[385333674,1757781048089,-400.0,0.00027397,2]
[385333675,1757781048099,-400.0,0.00027397,2]
[385333676,1757781048109,-533.28,0.00027397,2]
[385333677,1757781048118,-400.0,0.00027397,2]
[385333678,1757781048131,-400.0,0.00027397,2]
[385333679,1757781048140,-400.0,0.00027397,2]
[385333680,1757781048150,-867.52,0.00027397,2]
[385333681,1757781048159,-400.0,0.00027397,2]
[385333682,1757781048169,-400.0,0.00027397,2]
[385333683,1757781048178,-400.0,0.00027397,2]
[385333684,1757781048188,-400.0,0.00027397,2]
[385333685,1757781048199,-400.0,0.00027397,2]
[385333686,1757781048208,-400.0,0.00027397,2]
[385333687,1757781048218,-400.0,0.00027397,2]
[385333688,1757781048227,-152.831687,0.00027397,7]
[385333689,1757781048237,-402.13,0.00027397,2]
[385333690,1757781048246,-400.0,0.00027397,2]
[385333691,1757781048255,-409.51,0.00027397,2]
[385333692,1757781048265,-735.59,0.00027397,2]
[385333693,1757781048274,-770.1,0.00027397,2]
[385333694,1757781048283,-155.947208,0.00027397,7]
[385333695,1757781048292,-400.0,0.00027397,2]
[385333696,1757781048302,-400.0,0.00027397,2]
[385333697,1757781048311,-408.31872692,0.00027397,2]
[385333698,1757781048320,-400.0,0.00027397,2]
[385333699,1757781048330,-400.0,0.00027397,2]
[385333700,1757781048339,-400.0,0.00027397,2]
[385333701,1757781048348,-400.0,0.00027397,2]
[385333702,1757781048358,-400.0,0.00027397,2]
[385333703,1757781048367,-400.0,0.00027397,2]
[385333704,1757781048376,-400.0,0.00027397,2]
[385333705,1757781048385,-400.0,0.00027397,2]
[385333706,1757781048395,-413.27,0.00027397,2]
[385333707,1757781048404,-400.0,0.00027397,2]
[385333708,1757781048414,-400.0,0.00027397,2]
[385333709,1757781048430,-944.97,0.00027397,2]
[385333710,1757781048439,-400.0,0.00027397,2]
[385333711,1757781048448,-580.17,0.00027397,2]
[385333712,1757781048458,-400.0,0.00027397,2]
[385333713,1757781048469,-400.0,0.00027397,2]
[385333714,1757781048478,-400.0,0.00027397,2]
[385333715,1757781048488,-400.0,0.00027397,2]
[385333716,1757781048499,-400.0,0.00027397,2]
[385333717,1757781048508,-404.44525121,0.00027397,2]
[385333718,1757781048518,-904.53,0.00027397,2]
[385333719,1757781048528,-780.56,0.00027397,2]
[385333720,1757781048538,-400.0,0.00027397,2]
[385333721,1757781048547,-400.0,0.00027397,2]
[385333722,1757781048556,-400.0,0.00027397,2]
[385333723,1757781048566,-400.0,0.00027397,2]
[385333724,1757781048575,-400.0,0.00027397,2]
[385333725,1757781048584,-400.0,0.00027397,2]
[385333726,1757781048593,-808.44,0.00027397,2]
[385333727,1757781048602,-910.66,0.00027397,2]
[385333728,1757781048612,-400.0,0.00027397,2]
[385333729,1757781048621,-400.0,0.00027397,2]
[385333730,1757781048630,-400.0,0.00027397,2]
[385333731,1757781048639,-405.86868239,0.00027397,2]
[385333732,1757781048649,-400.0,0.00027397,2]
[385333733,1757781048658,-400.0,0.00027397,2]
[385333734,1757781048667,-400.0,0.00027397,2]
[385333735,1757781048676,-400.0,0.00027397,2]
[385333736,1757781048685,-403.61377405,0.00027397,2]
[385333737,1757781048694,-502.29,0.00027397,2]
[385333738,1757781048704,-472.83,0.00027397,2]
[385333739,1757781048714,-778.71,0.00027397,2]
[385333740,1757781048723,-400.0,0.00027397,2]
[385333741,1757781048732,-400.0,0.00027397,2]
[385333742,1757781048742,-565.94,0.00027397,2]
[385333743,1757781048751,-400.0,0.00027397,2]
[385333744,1757781048761,-400.0,0.00027397,2]
[385333745,1757781048770,-400.0,0.00027397,2]
[385333746,1757781048779,-400.0,0.00027397,2]
[385333747,1757781048788,-377.38755607,0.00027397,2]
[385333748,1757781048798,-154.313951,0.00027397,7]
[385333749,1757781048807,-400.0,0.00027397,2]
[385333750,1757781048817,-400.0,0.00027397,2]
[385333751,1757781048826,-402.65852411,0.00027397,2]
[385333752,1757781048835,-400.0,0.00027397,2]
[385333753,1757781048844,-400.0,0.00027397,2]
[385333754,1757781048854,-400.0,0.00027397,2]
[385333755,1757781048863,-1456.36,0.00027397,2]
[385333756,1757781048873,-400.0,0.00027397,2]
[385333757,1757781048882,-400.0,0.00027397,2]
[385333758,1757781048892,-400.0,0.00027397,2]
[385333759,1757781048901,-400.0,0.00027397,2]
[385333760,1757781048911,-151.0,0.00027397,7]
[385333761,1757781048920,-400.0,0.00027397,2]
[385333762,1757781048931,-154.401558,0.00027397,7]
[385333763,1757781048940,-151.0,0.00027397,7]
[385333764,1757781048949,-400.0,0.00027397,2]
[385333765,1757781048959,-404.56,0.00027397,2]
[385333766,1757781048969,-400.0,0.00027397,2]
[385333767,1757781048979,-400.0,0.00027397,2]
[385333768,1757781048990,-400.0,0.00027397,2]
[385333769,1757781048999,-400.0,0.00027397,2]
[385333770,1757781049009,-400.0,0.00027397,2]
[385333771,1757781049019,-400.0,0.00027397,2]
[385333772,1757781049028,-151.0,0.00027397,7]
[385333773,1757781049037,-403.7777178,0.00027397,2]
[385333774,1757781049047,-151.0,0.00027397,7]
[385333775,1757781049056,-208.649334,0.00027397,7]
[385333776,1757781049066,-400.0,0.00027397,2]
[385333777,1757781049075,-400.0,0.00027397,2]
[385333778,1757781049085,-400.0,0.00027397,2]
[385333779,1757781049094,-400.0,0.00027397,2]
[385333780,1757781049104,-400.0,0.00027397,2]
[385333781,1757781049113,-588.51,0.00027397,2]
[385333782,1757781049123,-400.0,0.00027397,2]
[385333783,1757781049133,-968.31,0.00027397,2]
[385333784,1757781049142,-400.0,0.00027397,2]
[385333785,1757781049152,-402.30159163,0.00027397,2]
[385333786,1757781049161,-400.0,0.00027397,2]
[385333787,1757781049174,-468.07,0.00027397,2]
[385333788,1757781049184,-400.0,0.00027397,2]
[385333789,1757781049193,-151.88758,0.00027397,7]
[385333790,1757781049203,-407.06202688,0.00027397,2]
[385333791,1757781049213,-655.13,0.00027397,2]
[385333792,1757781049223,-400.0,0.00027397,2]
[385333793,1757781049232,-752.93,0.00027397,2]
[385333794,1757781049242,-400.0,0.00027397,2]
[385333795,1757781049251,-400.0,0.00027397,2]
[385333796,1757781049260,-400.0,0.00027397,2]
[385333797,1757781049269,-400.0,0.00027397,2]
[385333798,1757781049278,-400.0,0.00027397,2]
[385333799,1757781049287,-400.0,0.00027397,2]
[385333800,1757781049296,-413.61,0.00027397,2]
[385333801,1757781049306,-400.0,0.00027397,2]
[385333802,1757781049315,-400.0,0.00027397,2]
[385333803,1757781049325,-492.5,0.00027397,2]
[385333804,1757781049334,-400.0,0.00027397,2]
[385333805,1757781049342,-406.15660719,0.00027397,2]
[385333806,1757781049351,-400.0,0.00027397,2]
[385333807,1757781049360,-400.0,0.00027397,2]
[385333808,1757781049369,-400.0,0.00027397,2]
[385333809,1757781049378,-400.0,0.00027397,2]
[385333810,1757781049387,-400.0,0.00027397,2]
[385333811,1757781049396,-400.0,0.00027397,2]
[385333812,1757781049405,-400.0,0.00027397,2]
[385333813,1757781049415,-400.0,0.00027397,2]
[385333814,1757781049426,-1100.08,0.00027397,2]
[385333815,1757781049435,-401.8,0.00027397,2]
[385333816,1757781049445,-400.0,0.00027397,2]
[385333817,1757781049455,-400.0,0.00027397,2]
[385333818,1757781049465,-516.06,0.00027397,2]
[385333819,1757781049475,-400.0,0.00027397,2]
[385333820,1757781049484,-823.98,0.00027397,2]
[385333821,1757781049494,-400.0,0.00027397,2]
[385333822,1757781049503,-500.0,0.00027397,2]
[385333823,1757781049514,-425.71,0.00027397,2]
[385333824,1757781049523,-400.0,0.00027397,2]
[385333825,1757781049532,-400.0,0.00027397,2]
[385333826,1757781049541,-400.0,0.00027397,2]
[385333827,1757781049550,-400.0,0.00027397,2]
[385333828,1757781049559,-229.494378,0.00027397,7]
[385333829,1757781049568,-151.0,0.00027397,7]
[385333830,1757781049578,-151.0,0.00027397,7]
[385333831,1757781049586,-151.0,0.00027397,7]
[385333832,1757781049596,-738.66,0.00027397,2]
[385333833,1757781049605,-151.0,0.00027397,7]
[385333834,1757781049614,-151.0,0.00027397,7]
[385333835,1757781049623,-151.0,0.00027397,7]
[385333836,1757781049633,-523.04,0.00027397,2]
[385333837,1757781049641,-151.0,0.00027397,7]
[385333838,1757781049651,-151.0,0.00027397,7]
[385333839,1757781049661,-151.0,0.00027397,7]
[385333840,1757781049670,-400.0,0.00027397,2]
[385333841,1757781049679,-222.967196,0.00027397,7]
[385333842,1757781049688,-151.0,0.00027397,7]
[385333843,1757781049698,-151.0,0.00027397,7]
[385333844,1757781049707,-400.0,0.00027397,2]
[385333845,1757781049716,-400.0,0.00027397,2]
[385333846,1757781049725,-151.0,0.00027397,7]
[385333847,1757781049734,-151.0,0.00027397,7]
[385333848,1757781049743,-151.0,0.00027397,7]
[385333849,1757781049752,-151.0,0.00027397,7]
[385333850,1757781049762,-151.0,0.00027397,7]
[385333851,1757781049771,-400.0,0.00027397,2]
[385333852,1757781049780,-151.0,0.00027397,7]
[385333853,1757781049789,-400.0,0.00027397,2]
[385333854,1757781049798,-151.0,0.00027397,7]
[385333855,1757781049807,-151.0,0.00027397,7]
[385333856,1757781049816,-923.07,0.00027397,2]
[385333857,1757781049826,-151.0,0.00027397,7]
[385333858,1757781049835,-155.668302,0.00027397,7]
[385333859,1757781049844,-225.052,0.00027397,7]
[385333860,1757781049853,-400.0,0.00027397,2]
[385333861,1757781049862,-400.0,0.00027397,2]
[385333862,1757781049872,-850.18,0.00027397,2]
[385333863,1757781049880,-151.0,0.00027397,7]
[385333864,1757781049889,-151.925575,0.00027397,7]
[385333865,1757781049898,-151.0,0.00027397,7]
[385333866,1757781049907,-152.147664,0.00027397,7]
[385333867,1757781049916,-400.0,0.00027397,2]
[385333868,1757781049925,-549.61,0.00027397,2]
[385333869,1757781049935,-400.0,0.00027397,2]
[385333870,1757781049944,-400.0,0.00027397,2]
[385333871,1757781049954,-400.0,0.00027397,2]
[385333872,1757781049963,-151.0,0.00027397,7]
[385333873,1757781049972,-151.0,0.00027397,7]
[385333874,1757781049981,-151.0,0.00027397,7]
[385333875,1757781049990,-400.0,0.00027397,2]
[385333876,1757781049999,-151.0,0.00027397,7]
[385333877,1757781050010,-745.82,0.00027397,2]
[385333878,1757781050019,-1037.99,0.00027397,2]
[385333879,1757781050028,-151.0,0.00027397,7]
[385333880,1757781050037,-151.0,0.00027397,7]
[385333881,1757781050046,-211.825612,0.00027397,7]
[385333882,1757781050055,-598.41,0.00027397,2]
[385333883,1757781050065,-400.0,0.00027397,2]
[385333884,1757781050074,-400.0,0.00027397,2]
[385333885,1757781050083,-400.0,0.00027397,2]
[385333886,1757781050093,-400.0,0.00027397,2]
[385333887,1757781050102,-500.0,0.00027397,2]
[385333888,1757781050111,-500.0,0.00027397,2]
[385333889,1757781050120,-631.76781661,0.00027397,2]
[385333890,1757781050129,-400.0,0.00027397,2]
[385333891,1757781050139,-300.0,0.00027397,2]
[385333892,1757781050148,-400.0,0.00027397,2]
[385333893,1757781050156,-400.0,0.00027397,2]
[385333894,1757781050165,-842.15,0.00027397,2]
[385333895,1757781050175,-400.0,0.00027397,2]
[385333896,1757781050183,-1210.19,0.00027397,2]
[385333897,1757781050192,-400.0,0.00027397,2]
[385333898,1757781050202,-400.0,0.00027397,2]
[385333899,1757781050211,-508.16,0.00027397,2]
[385333900,1757781050220,-400.0,0.00027397,2]
[385333901,1757781050229,-400.0,0.00027397,2]
[385333902,1757781050238,-400.0,0.00027397,2]
[385333903,1757781050247,-400.0,0.00027397,2]
[385333904,1757781050256,-696.1,0.00027397,2]
[385333905,1757781050265,-400.0,0.00027397,2]
[385333906,1757781050274,-400.0,0.00027397,2]
[385333907,1757781050283,-400.0,0.00027397,2]
[385333908,1757781050292,-767.15,0.00027397,2]
[385333909,1757781050301,-400.0,0.00027397,2]
[385333910,1757781050310,-400.0,0.00027397,2]
[385333911,1757781050319,-400.0,0.00027397,2]
[385333912,1757781050328,-1003.06,0.00027397,2]
[385333913,1757781050338,-400.0,0.00027397,2]
[385333914,1757781050348,-401.89835383,0.00027397,2]
[385333915,1757781050558,-400.0,0.00027397,2]
[385333916,1757781050569,-400.0,0.00027397,2]
[385333917,1757781050579,-400.0,0.00027397,2]
[385333918,1757781050588,-400.0,0.00027397,2]
[385333919,1757781050597,-1301.82,0.00027397,2]
[385333920,1757781050606,-1111.38,0.00027397,2]
[385333921,1757781050615,-400.0,0.00027397,2]
[385333922,1757781050624,-400.0,0.00027397,2]
[385333923,1757781050633,-400.0,0.00027397,2]
[385333924,1757781050641,-400.0,0.00027397,2]
[385333925,1757781050650,-400.0,0.00027397,2]
[385333926,1757781050660,-766.71,0.00027397,2]
[385333927,1757781050669,-400.0,0.00027397,2]
[385333928,1757781050678,-400.0,0.00027397,2]
[385333929,1757781050687,-1362.82,0.00027397,2]
[385333930,1757781050696,-274.51310637,0.00027397,2]
[385333931,1757781050706,-400.0,0.00027397,2]
[385333932,1757781050715,-420.86,0.00027397,2]
[385333933,1757781050724,-1000.0,0.00027397,2]
[385333934,1757781050733,-400.0,0.00027397,2]
[385333935,1757781050743,-505.46285025,0.00027397,10]
[385333936,1757781050751,-400.0,0.00027397,2]
[385333937,1757781050760,-400.0,0.00027397,2]